bitfinex/quotes_BTCUSD_20250730
["timestamp","ask_amount","ask_price","bid_price","bid_amount"]
[1753849659417,0.49061027,118390.0,118380.0,0.2723673]
[1753849659787,0.49905692,118390.0,118380.0,0.2723673]
[1753849662916,0.49061027,118390.0,118380.0,0.2723673]
[1753849663328,0.49905692,118390.0,118380.0,0.2723673]
[1753849666546,0.49061027,118390.0,118380.0,0.2723673]
[1753849666767,0.49905692,118390.0,118380.0,0.2723673]
[1753849667190,0.49061027,118390.0,118380.0,0.2723673]
[1753849667397,0.49905685,118390.0,118380.0,0.2723673]
[1753849671165,0.65954373,118390.0,118380.0,0.2723673]
[1753849672438,0.65954373,118390.0,118380.0,0.1427373]
[1753849672829,0.8873928,118390.0,118380.0,0.0999773]
[1753849673295,0.8873928,118390.0,118380.0,0.2275773]
[1753849674126,1.2273928,118390.0,118380.0,0.1276]
[1753849674379,0.51739468,118380.0,118370.0,0.0163]
[1753849674635,1.21432121,118380.0,118370.0,0.2449773]
[1753849675859,1.21432121,118380.0,118370.0,0.2685673]
[1753849676076,0.9826757,118380.0,118370.0,0.2705673]
[1753849696904,1.21432121,118380.0,118370.0,0.2706073]
[1753849697128,1.21897121,118380.0,118370.0,0.14594]
[1753849699002,1.21630121,118380.0,118370.0,0.14594]
[1753849699206,1.21432121,118380.0,118370.0,0.16154]
[1753849699833,1.21432121,118380.0,118370.0,0.18417]
[1753849706659,1.21432121,118380.0,118370.0,0.05653]
[1753849707120,1.21432121,118380.0,118370.0,0.18417]
[1753849707484,1.21432121,118380.0,118370.0,0.05653]
[1753849707698,1.21432121,118380.0,118370.0,0.18417]
[1753849710477,1.21432121,118380.0,118370.0,0.16154]
[1753849711097,1.21432121,118380.0,118370.0,0.18417]
[1753849713370,1.21896121,118380.0,118370.0,0.14594]
[1753849713777,1.21629121,118380.0,118370.0,0.14594]
[1753849713992,1.21629121,118380.0,118370.0,0.16164]
[1753849714199,1.21432121,118380.0,118370.0,0.034]
[1753849714383,1.99837504,118380.0,118370.0,0.002]
[1753849714624,2.02377004,118380.0,118370.0,0.002]
[1753849714832,2.12569636,118380.0,118370.0,0.12964]
[1753849715262,2.14396341,118380.0,118370.0,0.12864]
[1753849715705,0.18587309,118360.0,118350.0,0.0152]
[1753849715958,0.91828431,118360.0,118350.0,0.0152]
[1753849716178,0.92293431,118360.0,118350.0,0.0152]
[1753849716396,0.51743965,118350.0,118340.0,0.25959486]
[1753849716613,0.98272067,118350.0,118340.0,0.38723486]
[1753849719441,0.98272067,118350.0,118340.0,0.38823486]
[1753849719620,1.03035238,118350.0,118340.0,0.38823486]
[1753849720245,1.03035238,118350.0,118340.0,0.39126486]
[1753849720462,0.98272067,118350.0,118340.0,0.39329486]
[1753849720866,0.82844289,118350.0,118340.0,0.39329486]
[1753849721101,0.85384289,118350.0,118340.0,0.39329486]
[1753849721317,0.86030218,118350.0,118340.0,0.19029486]
[1753849721556,0.86030218,118350.0,118340.0,0.27477216]
[1753849721557,0.02534767,118350.0,118340.0,0.27477216]
[1753849721789,0.34280713,118360.0,118350.0,0.0318]
[1753849722020,0.35125593,118360.0,118350.0,0.1183073]
[1753849722304,0.69125593,118360.0,118350.0,0.1439673]
[1753849722508,0.85178371,118360.0,118350.0,0.1439673]
[1753849722997,0.85178371,118360.0,118350.0,0.1449673]
[1753849723662,0.84333527,118360.0,118350.0,0.1449673]
[1753849723800,0.67435927,118360.0,118350.0,0.1449673]
[1753849724216,0.83488676,118360.0,118350.0,0.1449673]
[1753849725314,1.13545128,118360.0,118350.0,0.18813]
[1753849725769,1.13545128,118360.0,118350.0,0.18817]
[1753849726852,0.82643804,118360.0,118350.0,0.18817]
[1753849735293,0.82643804,118360.0,118350.0,0.18821]
[1753849740225,0.5174248,118360.0,118350.0,0.18821]
[1753849740427,0.82643804,118360.0,118350.0,0.18821]
[1753849741048,0.64901324,118360.0,118350.0,0.2726873]
[1753849741282,0.01689552,118370.0,118360.0,0.0314]
[1753849741504,0.49487078,118370.0,118360.0,0.1179473]
[1753849741643,0.83487078,118370.0,118360.0,0.1451873]
[1753849742407,0.83587078,118370.0,118360.0,0.1451873]
[1753849743390,0.82742291,118370.0,118360.0,0.1451873]
[1753849747327,0.81897497,118370.0,118360.0,0.1451873]
[1753849750395,0.82095497,118370.0,118360.0,0.1451873]
[1753849750755,0.82095497,118370.0,118360.0,0.1399073]
[1753849750924,0.82095497,118370.0,118360.0,0.2677873]
[1753849753825,0.82095497,118370.0,118360.0,0.2709973]
[1753849754352,0.82095497,118370.0,118360.0,0.2677873]
[1753849756499,0.51194173,118370.0,118360.0,0.2677873]
[1753849756705,0.82095497,118370.0,118360.0,0.2677873]
[1753849763809,0.82095497,118370.0,118360.0,0.15928]
[1753849764249,0.82095497,118370.0,118360.0,0.18398]
[1753849770850,0.97528139,118370.0,118360.0,0.18398]
[1753849775094,1.06173869,118370.0,118360.0,0.0314]
[1753849775310,1.06440869,118370.0,118360.0,0.15916]
[1753849776404,0.97993139,118370.0,118360.0,0.15916]
[1753849776613,0.97726139,118370.0,118360.0,0.15916]
[1753849779628,0.97528139,118370.0,118360.0,0.15916]
[1753849781661,0.97528139,118370.0,118360.0,0.18386]
[1753849781822,0.97528139,118370.0,118360.0,0.15916]
[1753849782027,1.05975869,118370.0,118360.0,0.15916]
[1753849782439,1.05975869,118370.0,118360.0,0.18386]
[1753849783087,0.97528139,118370.0,118360.0,0.18386]
[1753849785195,0.97528139,118370.0,118360.0,0.15916]
[1753849785910,0.97528139,118370.0,118360.0,0.18386]
[1753849786689,0.97528139,118370.0,118360.0,0.15916]
[1753849787683,0.97528139,118370.0,118360.0,0.18386]
[1753849788316,1.05975869,118370.0,118360.0,0.18386]
[1753849789749,1.08515569,118370.0,118360.0,0.18386]
[1753849800826,1.31682552,118370.0,118360.0,0.18386]
[1753849801044,1.31682552,118370.0,118360.0,0.15916]
[1753849801926,1.31682552,118370.0,118360.0,0.18309]
[1753849802160,1.08515569,118370.0,118360.0,0.18309]
[1753849816556,1.08515569,118370.0,118360.0,0.18616]
[1753849818313,1.08515569,118370.0,118360.0,0.18831]
[1753849819240,0.62181603,118370.0,118360.0,0.18831]
[1753849819439,1.08515569,118370.0,118360.0,0.18831]
[1753849820626,1.08515569,118370.0,118360.0,0.18309]
[1753849822324,1.08515569,118370.0,118360.0,0.15916]
[1753849822680,1.1034305,118370.0,118360.0,0.15916]
[1753849823495,1.08515569,118370.0,118360.0,0.18342]
[1753849824203,1.10343091,118370.0,118360.0,0.18342]
[1753849824865,1.35254976,118370.0,118360.0,0.15916]
[1753849825075,1.44167706,118370.0,118360.0,0.14286]
[1753849825248,1.44167706,118370.0,118360.0,0.0151]
[1753849825462,1.44167706,118370.0,118360.0,0.14278]
[1753849826315,1.77961706,118370.0,118360.0,0.14278]
[1753849827326,1.90729706,118370.0,118360.0,0.14278]
[1753849828421,1.90729706,118370.0,118360.0,0.0151]
[1753849828848,0.17742465,118360.0,118350.0,0.16784]
[1753849829075,0.17743965,118350.0,118340.0,0.01906486]
[1753849829281,0.98069931,118350.0,118340.0,0.14678486]
[1753849829480,0.99897453,118350.0,118340.0,0.17104486]
[1753849830313,1.55236914,118350.0,118340.0,0.17104486]
[1753849830504,1.33894302,118350.0,118340.0,0.17104486]
[1753849830704,1.42342032,118350.0,118340.0,0.17104486]
[1753849830908,1.40517661,118350.0,118340.0,0.17104486]
[1753849831745,1.40717661,118350.0,118340.0,0.17104486]
[1753849831902,1.40717661,118350.0,118340.0,0.18734486]
[1753849834351,1.43257961,118350.0,118340.0,0.18734486]
[1753849834779,1.43257961,118350.0,118340.0,0.19028486]
[1753849834982,1.43257961,118350.0,118340.0,0.19243486]
[1753849838621,1.43257961,118350.0,118340.0,0.19028486]
[1753849839961,1.43257961,118350.0,118340.0,0.18734486]
[1753849843959,1.43257961,118350.0,118340.0,0.19243486]
[1753849847730,1.45002863,118350.0,118340.0,0.19243486]
[1753849847934,1.45002863,118350.0,118340.0,0.19028486]
[1753849848485,1.45002863,118350.0,118340.0,0.18734486]
[1753849849710,1.97910593,118350.0,118340.0,0.18734486]
[1753849852295,1.99734574,118350.0,118340.0,0.18734486]
[1753849858127,1.53400608,118350.0,118340.0,0.18734486]
[1753849858343,1.99734574,118350.0,118340.0,0.18734486]
[1753849862220,1.99734574,118350.0,118340.0,0.19230486]
[1753849869934,1.99734574,118350.0,118340.0,0.19250486]
[1753849870143,1.99734574,118350.0,118340.0,0.18754486]
[1753849875975,1.99734574,118350.0,118340.0,0.19047486]
[1753849877588,1.99734574,118350.0,118340.0,0.18754486]
[1753849879118,1.99734574,118350.0,118340.0,0.19052486]
[1753849880821,1.99734574,118350.0,118340.0,0.18754486]
[1753849885456,1.99734574,118350.0,118340.0,0.19052486]
[1753849887127,1.99734574,118350.0,118340.0,0.18754486]
[1753849889159,1.99734574,118350.0,118340.0,0.19052486]
[1753849894671,1.99734574,118350.0,118340.0,0.18754486]
[1753849897452,6.46672357,118350.0,118340.0,0.03536486]
[1753849897661,6.69416549,118350.0,118340.0,0.03536486]
[1753849901150,6.69416549,118350.0,118340.0,0.01946486]
[1753849902609,6.69416549,118350.0,118340.0,0.00316486]
[1753849902816,6.71532207,118350.0,118340.0,1e-08]
[1753849903018,6.77298518,118350.0,118340.0,1e-08]
[1753849903304,6.32838518,118350.0,118340.0,1e-08]
[1753849903499,6.97339467,118350.0,118340.0,1e-08]
[1753849903705,7.06986722,118350.0,118340.0,1e-08]
[1753849904126,6.37285773,118350.0,118340.0,1e-08]
[1753849904533,7.07286722,118350.0,118340.0,1e-08]
[1753849904740,4.90966166,118340.0,118330.0,1e-08]
[1753849904939,6.9823526,118340.0,118330.0,1e-08]
[1753849905365,6.9315626,118340.0,118330.0,1e-08]
[1753849905987,6.96401763,118340.0,118330.0,4.844e-05]
[1753849906201,6.9335626,118340.0,118330.0,4.844e-05]
[1753849906827,6.9335626,118340.0,118330.0,1e-08]
[1753849907048,6.96601763,118340.0,118330.0,1e-08]
[1753849908133,6.95171763,118340.0,118330.0,1e-08]
[1753849909016,6.96601763,118340.0,118330.0,1e-08]
[1753849909454,6.95171763,118340.0,118330.0,1e-08]
[1753849910476,6.9212626,118340.0,118330.0,1e-08]
[1753849910888,6.9185926,118340.0,118330.0,1e-08]
[1753849911259,6.9166126,118340.0,118330.0,0.01590001]
[1753849911957,6.9166126,118340.0,118330.0,1e-08]
[1753849913054,6.9166126,118340.0,118330.0,0.01530001]
[1753849913238,4.82713763,118330.0,118320.0,0.04073]
[1753849913376,6.17556153,118330.0,118320.0,0.0427]
[1753849913574,6.17556153,118330.0,118320.0,0.04584]
[1753849914188,2.06589353,118330.0,118320.0,0.04584]
[1753849914392,2.09426453,118330.0,118320.0,0.04584]
[1753849914593,6.20393253,118330.0,118320.0,0.04387]
[1753849915424,6.20393253,118330.0,118320.0,0.04073]
[1753849915637,6.22879705,118330.0,118320.0,0.04073]
[1753849915838,6.22979705,118330.0,118320.0,0.04073]
[1753849916046,6.22979705,118330.0,118320.0,0.05623]
[1753849916662,6.22979705,118330.0,118320.0,0.06134]
[1753849918114,6.22979705,118330.0,118320.0,0.05623]
[1753849918791,6.22979705,118330.0,118320.0,0.06134]
[1753849921283,6.22978505,118330.0,118320.0,0.06134]
[1753849921900,6.22978505,118330.0,118320.0,0.05623]
[1753849927249,6.25256981,118330.0,118320.0,0.05937]
[1753849927437,6.25256981,118330.0,118320.0,0.06134]
[1753849927627,2.14290181,118330.0,118320.0,0.06134]
[1753849927824,6.25256981,118330.0,118320.0,0.06134]
[1753849928538,6.22978505,118330.0,118320.0,0.06134]
[1753849928947,6.25256981,118330.0,118320.0,0.06134]
[1753849929296,6.25256981,118330.0,118320.0,0.05937]
[1753849932089,6.25256981,118330.0,118320.0,0.05623]
[1753849933465,6.28302484,118330.0,118320.0,0.05623]
[1753849935440,6.26024008,118330.0,118320.0,0.05623]
[1753849937248,6.26024008,118330.0,118320.0,0.05937]
[1753849937495,6.26024008,118330.0,118320.0,0.06134]
[1753849941747,6.26024008,118330.0,118320.0,0.05937]
[1753849946019,2.15057208,118330.0,118320.0,0.05937]
[1753849946228,6.26024008,118330.0,118320.0,0.05937]
[1753849946841,6.26024008,118330.0,118320.0,0.0615]
[1753849947042,2.15057208,118330.0,118320.0,0.0615]
[1753849947223,6.26024008,118330.0,118320.0,0.0615]
[1753849947608,6.28310113,118330.0,118320.0,0.0615]
[1753849948085,2.17343313,118330.0,118320.0,0.0615]
[1753849948220,6.28310113,118330.0,118320.0,0.0615]
[1753849949047,2.17343313,118330.0,118320.0,0.0615]
[1753849949270,6.28310113,118330.0,118320.0,0.0615]
[1753849949851,6.26024008,118330.0,118320.0,0.0615]
[1753849950383,6.26024008,118330.0,118320.0,0.05623]
[1753849951218,4.64460166,118320.0,118310.0,0.00297]
[1753849951431,4.64460166,118320.0,118310.0,0.0051]
[1753849951432,5.63109694,118320.0,118310.0,0.0051]
[1753849951846,5.96903694,118320.0,118310.0,0.0051]
[1753849952053,5.99444794,118320.0,118310.0,0.0051]
[1753849952439,5.99444794,118320.0,118310.0,0.0061]
[1753849953061,5.99643794,118320.0,118310.0,0.0061]
[1753849953266,5.99643794,118320.0,118310.0,0.00397]
[1753849953488,5.99643794,118320.0,118310.0,0.02768]
[1753849953901,1.82626926,118320.0,118310.0,0.02768]
[1753849954106,5.93593726,118320.0,118310.0,0.05918]
[1753849954308,5.93793726,118320.0,118310.0,0.05918]
[1753849954727,5.93593726,118320.0,118310.0,0.06131]
[1753849955162,5.93693726,118320.0,118310.0,0.06031]
[1753849955372,6.02141456,118320.0,118310.0,0.06031]
[1753849956014,6.02341456,118320.0,118310.0,0.06031]
[1753849956832,6.02141456,118320.0,118310.0,0.06031]
[1753849957032,6.02241456,118320.0,118310.0,0.06031]
[1753849961175,6.04328436,118320.0,118310.0,0.06031]
[1753849961381,5.95880706,118320.0,118310.0,0.06031]
[1753849965879,5.96078706,118320.0,118310.0,0.06031]
[1753849968085,5.96078706,118320.0,118310.0,0.05818]
[1753849968287,5.98398706,118320.0,118310.0,0.05818]
[1753849968508,6.00514364,118320.0,118310.0,0.0315]
[1753849969355,6.00514364,118320.0,118310.0,0.05599]
[1753849970207,6.08962094,118320.0,118310.0,0.05599]
[1753849970417,6.06846436,118320.0,118310.0,0.05599]
[1753849972096,6.04526436,118320.0,118310.0,0.05599]
[1753849972333,6.04526436,118320.0,118310.0,0.06116]
[1753849975388,6.04526436,118320.0,118310.0,0.05904]
[1753849975562,6.06812436,118320.0,118310.0,0.05599]
[1753849976938,6.06812436,118320.0,118310.0,0.0315]
[1753849978749,1.95845636,118320.0,118310.0,0.0315]
[1753849979252,6.06812436,118320.0,118310.0,0.0315]
[1753849980043,5.93984436,118320.0,118310.0,0.0315]
[1753849980395,1.48918923,118320.0,118310.0,0.06116]
[1753849980613,1.59452943,118320.0,118310.0,0.06116]
[1753849984383,1.82619926,118320.0,118310.0,0.06116]
[1753849984735,1.59452943,118320.0,118310.0,0.06116]
[1753849984966,1.82619926,118320.0,118310.0,0.06116]
[1753849985345,1.91067656,118320.0,118310.0,0.06116]
[1753849986351,1.67900673,118320.0,118310.0,0.06116]
[1753849987953,1.91067656,118320.0,118310.0,0.06116]
[1753849988914,1.91265656,118320.0,118310.0,0.06116]
[1753849989127,1.93451656,118320.0,118310.0,0.0315]
[1753849989564,1.93551656,118320.0,118310.0,0.0315]
[1753849989981,1.93451656,118320.0,118310.0,0.0315]
[1753849990416,1.93451656,118320.0,118300.0,0.05984]
[1753849990417,0.2034008,118310.0,118300.0,0.05984]
[1753849990646,1.30385506,118310.0,118300.0,0.05984]
[1753849990861,1.32208287,118310.0,118300.0,0.05984]
[1753849991069,1.32208287,118310.0,118300.0,0.06196]
[1753849991511,1.34749587,118310.0,118300.0,0.06196]
[1753849992482,1.34749587,118310.0,118300.0,0.06296]
[1753849993016,0.88415621,118310.0,118300.0,0.06296]
[1753849993216,1.34749587,118310.0,118300.0,0.06296]
[1753849994438,1.35602423,118310.0,118300.0,0.06296]
[1753849996829,1.26956693,118310.0,118300.0,0.06296]
[1753849997729,0.80622727,118310.0,118300.0,0.06296]
[1753849997931,1.26956693,118310.0,118300.0,0.06296]
[1753849998325,1.0378971,118310.0,118300.0,0.06296]
[1753849998648,1.26961916,118310.0,118300.0,0.06296]
[1753850000733,1.35409646,118310.0,118300.0,0.06296]
[1753850000912,1.26961916,118310.0,118300.0,0.06296]
[1753850001125,0.8062795,118310.0,118300.0,0.06296]
[1753850001275,1.03794933,118310.0,118300.0,0.06496]
[1753850001718,1.26961916,118310.0,118300.0,0.06496]
[1753850003313,0.8062795,118310.0,118300.0,0.06496]
[1753850003546,1.26961916,118310.0,118300.0,0.06496]
[1753850003691,1.03794933,118310.0,118300.0,0.06496]
[1753850005187,1.26961916,118310.0,118300.0,0.06496]
[1753850007737,1.35409646,118310.0,118300.0,0.06496]
[1753850007956,1.26961916,118310.0,118300.0,0.06496]
[1753850012126,1.27159916,118310.0,118300.0,0.06496]
[1753850020184,1.61159916,118310.0,118300.0,0.05979]
[1753850020399,1.63449916,118310.0,118300.0,0.0353]
[1753850020622,1.71897646,118310.0,118300.0,0.0353]
[1753850021113,1.71897646,118310.0,118300.0,0.05936]
[1753850022173,1.71897646,118310.0,118300.0,0.0353]
[1753850022400,1.71897646,118310.0,118300.0,0.0192]
[1753850022607,1.71897646,118310.0,118300.0,0.003]
[1753850022823,1.71897646,118310.0,118300.0,0.0181]
[1753850023069,1.71897646,118310.0,118300.0,0.0344]
[1753850024769,1.2556368,118310.0,118300.0,0.003]
[1753850025096,1.71897646,118310.0,118300.0,0.003]
[1753850025309,1.1711595,118310.0,118300.0,0.0342]
[1753850025521,1.63449916,118310.0,118300.0,0.0342]
[1753850025975,1.63449916,118310.0,118300.0,0.0322]
[1753850026184,1.63449916,118310.0,118300.0,0.0332]
[1753850026604,1.63449916,118310.0,118300.0,0.0322]
[1753850027024,1.63449916,118310.0,118300.0,0.05626]
[1753850027232,1.69607646,118310.0,118300.0,0.05626]
[1753850027433,1.69607646,118310.0,118300.0,0.05945]
[1753850028068,1.69607646,118310.0,118300.0,0.06159]
[1753850041118,1.1044968,118310.0,118300.0,0.06159]
[1753850041333,1.61143916,118310.0,118300.0,0.06159]
[1753850046063,1.1480995,118310.0,118300.0,0.06159]
[1753850046277,1.61143916,118310.0,118300.0,0.06159]
[1753850047239,0.91611318,118310.0,118300.0,0.06159]
[1753850047448,0.86389178,118310.0,118300.0,0.06159]
[1753850047657,1.09556161,118310.0,118300.0,0.06159]
[1753850048067,1.58076752,118310.0,118300.0,0.0322]
[1753850048489,1.68604232,118310.0,118300.0,0.0322]
[1753850048692,1.22270266,118310.0,118300.0,0.0332]
[1753850048894,1.68604232,118310.0,118300.0,0.05578]
[1753850049096,1.68604232,118310.0,118300.0,0.05478]
[1753850049436,1.69465068,118310.0,118300.0,0.05678]
[1753850050268,1.77089368,118310.0,118300.0,0.05678]
[1753850050451,1.72006368,118310.0,118300.0,0.05678]
[1753850051497,1.72006368,118310.0,118300.0,0.0342]
[1753850052522,1.25672402,118310.0,118300.0,0.0342]
[1753850052701,1.72006368,118310.0,118300.0,0.0342]
[1753850053615,1.72006368,118310.0,118300.0,0.003]
[1753850054480,1.72006368,118310.0,118300.0,0.002]
[1753850055077,0.19496366,118300.0,118290.0,0.05758]
[1753850055316,0.99624332,118300.0,118290.0,0.05968]
[1753850056260,0.99629169,118300.0,118290.0,0.05968]
[1753850056465,0.99629169,118300.0,118290.0,0.06168]
[1753850057198,1.44089169,118300.0,118290.0,0.06168]
[1753850057382,1.44089169,118300.0,118290.0,0.06268]
[1753850057817,1.46630569,118300.0,118290.0,0.06268]
[1753850058228,1.46828569,118300.0,118290.0,0.06268]
[1753850058864,1.48656242,118300.0,118290.0,0.06268]
[1753850059493,1.57103972,118300.0,118290.0,0.06268]
[1753850059699,1.72212972,118300.0,118290.0,0.0348]
[1753850059875,2.06212972,118300.0,118290.0,0.0348]
[1753850060429,2.06212972,118300.0,118290.0,0.05823]
[1753850061277,2.03919972,118300.0,118290.0,0.06129]
[1753850061489,2.03919972,118300.0,118290.0,0.06345]
[1753850061711,2.12367702,118300.0,118290.0,0.06345]
[1753850063116,1.67907702,118300.0,118290.0,0.06345]
[1753850063466,1.67907702,118300.0,118290.0,0.0348]
[1753850063467,1.93367685,118300.0,118290.0,0.0348]
[1753850063708,1.93367685,118300.0,118290.0,0.003]
[1753850064060,6.04334485,118300.0,118290.0,0.003]
[1753850064669,0.51752964,118290.0,118280.0,0.05879]
[1753850064877,1.35888464,118290.0,118280.0,0.06095]
[1753850065146,1.33821832,118290.0,118280.0,0.06095]
[1753850065317,1.36363432,118290.0,118280.0,0.06095]
[1753850066169,1.36363432,118290.0,118280.0,0.06295]
[1753850067185,1.36363432,118290.0,118280.0,0.06395]
[1753850068171,1.57627162,118290.0,118280.0,0.06395]
[1753850068454,1.66074892,118290.0,118280.0,0.06395]
[1753850068689,1.67901455,118290.0,118280.0,0.06395]
[1753850068890,2.10534892,118290.0,118280.0,0.06395]
[1753850069647,2.12827892,118290.0,118280.0,0.0353]
[1753850069872,2.12827892,118290.0,118280.0,0.0034]
[1753850070135,2.14654371,118290.0,118280.0,0.0034]
[1753850071810,0.54344798,118280.0,118270.0,0.0004]
[1753850072026,1.81598477,118280.0,118270.0,0.0004]
[1753850072226,5.94192184,118280.0,118270.0,0.0004]
[1753850073069,5.71025201,118280.0,118270.0,0.0161]
[1753850073284,5.71025201,118280.0,118270.0,0.03953]
[1753850073587,5.73567201,118280.0,118270.0,0.05553]
[1753850073810,5.71274201,118280.0,118270.0,0.06075]
[1753850074018,5.58254201,118280.0,118270.0,0.06075]
[1753850074241,1.13847781,118280.0,118270.0,0.06075]
[1753850074451,1.12102879,118280.0,118270.0,0.06075]
[1753850076568,1.35269862,118280.0,118270.0,0.06075]
[1753850076988,1.19871622,118280.0,118270.0,0.06075]
[1753850080468,0.88935896,118280.0,118270.0,0.06075]
[1753850080688,1.19871622,118280.0,118270.0,0.06075]
[1753850086105,1.28319352,118280.0,118270.0,0.06075]
[1753850086320,1.6348898,118280.0,118270.0,0.0321]
[1753850086528,1.7193671,118280.0,118270.0,0.0004]
[1753850086735,1.7213471,118280.0,118270.0,0.0004]
[1753850088166,1.6368698,118280.0,118270.0,0.0004]
[1753850088576,1.7651498,118280.0,118270.0,0.0004]
[1753850089616,1.7397298,118280.0,118270.0,0.0004]
[1753850090442,1.7377498,118280.0,118270.0,0.0004]
[1753850090647,1.7377498,118280.0,118270.0,0.0319]
[1753850095776,1.7377498,118280.0,118270.0,0.0004]
[1753850096229,1.11903528,118280.0,118270.0,0.0004]
[1753850096460,1.7377498,118280.0,118270.0,0.0004]
[1753850097368,1.7377498,118280.0,118270.0,0.0318]
[1753850098280,1.75601938,118280.0,118270.0,0.0318]
[1753850101990,1.75601938,118280.0,118270.0,0.05521]
[1753850102205,1.42373212,118280.0,118270.0,0.05521]
[1753850102396,1.73308938,118280.0,118270.0,0.05839]
[1753850102523,1.73308938,118280.0,118270.0,0.06038]
[1753850102723,1.57852812,118280.0,118270.0,0.06038]
[1753850104562,0.98609486,118280.0,118270.0,0.06038]
[1753850104776,1.44828812,118280.0,118270.0,0.06038]
[1753850106049,1.36381082,118280.0,118270.0,0.06038]
[1753850106934,1.34554124,118280.0,118270.0,0.06038]
[1753850108657,0.86393896,118280.0,118270.0,0.06038]
[1753850108846,1.32809222,118280.0,118270.0,0.06038]
[1753850119998,0.86393896,118280.0,118270.0,0.06038]
[1753850120244,1.32809222,118280.0,118270.0,0.06038]
[1753850120499,0.86393896,118280.0,118270.0,0.18858]
[1753850121203,1.08756129,118280.0,118270.0,0.18858]
[1753850122143,1.31963792,118280.0,118270.0,0.18858]
[1753850124842,0.85548466,118280.0,118270.0,0.18858]
[1753850125086,1.16486098,118280.0,118270.0,0.18858]
[1753850126825,1.16684098,118280.0,118270.0,0.18858]
[1753850130131,1.16684098,118280.0,118270.0,0.18862]
[1753850135578,1.19144098,118280.0,118270.0,0.16004]
[1753850136231,1.19144098,118280.0,118270.0,0.18356]
[1753850136470,1.16684098,118280.0,118270.0,0.18356]
[1753850139800,1.16684098,118280.0,118270.0,0.05532]
[1753850140003,1.6027746,118280.0,118270.0,0.12856]
[1753850142322,1.5182973,118280.0,118270.0,0.12856]
[1753850143432,1.16684098,118280.0,118270.0,0.16116]
[1753850143645,1.16684098,118280.0,118270.0,0.18664]
[1753850143898,1.16684098,118280.0,118270.0,0.1898]
[1753850144930,1.32157352,118280.0,118270.0,0.1898]
[1753850146848,1.34617352,118280.0,118270.0,0.18468]
[1753850147060,1.34617352,118280.0,118270.0,0.14476]
[1753850147390,1.43065082,118280.0,118270.0,0.14476]
[1753850148397,1.43065082,118280.0,118270.0,0.18299]
[1753850149607,1.43065082,118280.0,118270.0,0.12856]
[1753850149804,0.96654196,118280.0,118270.0,0.12856]
[1753850150007,1.37159152,118280.0,118270.0,0.12856]
[1753850155054,1.37357152,118280.0,118270.0,0.12856]
[1753850156297,1.37159152,118280.0,118270.0,0.12856]
[1753850157892,1.72385227,118280.0,118270.0,0.0004]
[1753850158100,1.74210257,118280.0,118270.0,0.12852]
[1753850158350,1.82657987,118280.0,118270.0,0.12852]
[1753850158571,1.59452544,118280.0,118270.0,0.12852]
[1753850158789,1.49176814,118280.0,118270.0,0.12852]
[1753850159668,1.49176814,118280.0,118270.0,0.0004]
[1753850159871,1.49176814,118280.0,118270.0,0.12852]
[1753850163875,1.47351784,118280.0,118270.0,0.12852]
[1753850164092,1.44891784,118280.0,118270.0,0.12852]
[1753850164323,1.44891784,118280.0,118270.0,0.18817]
[1753850164324,1.44693784,118280.0,118270.0,0.18817]
[1753850164739,1.44892784,118280.0,118270.0,0.18817]
[1753850165623,1.46718371,118280.0,118270.0,0.18817]
[1753850168619,1.52433806,118280.0,118270.0,0.05493]
[1753850168812,1.78127249,118280.0,118270.0,0.12848]
[1753850169657,1.72411814,118280.0,118270.0,0.12848]
[1753850170276,1.72411814,118280.0,118270.0,0.15111]
[1753850171491,1.72411814,118280.0,118270.0,0.12848]
[1753850173644,1.72411814,118280.0,118250.0,0.05812]
[1753850173645,0.18603027,118260.0,118250.0,0.05812]
[1753850173868,0.18603027,118260.0,118250.0,0.18843]
[1753850173869,0.73660643,118260.0,118250.0,0.18843]
[1753850174831,0.76202843,118260.0,118250.0,0.18843]
[1753850175053,0.76202843,118260.0,118250.0,0.18855299]
[1753850175494,1.20662843,118260.0,118250.0,0.18955299]
[1753850175695,1.20662843,118260.0,118250.0,0.1893445]
[1753850175841,1.20662843,118260.0,118250.0,0.1903445]
[1753850176707,1.23241518,118260.0,118250.0,0.1903445]
[1753850177673,0.76830632,118260.0,118250.0,0.1903445]
[1753850177889,1.23241518,118260.0,118250.0,0.1903445]
[1753850179364,1.23241518,118260.0,118250.0,0.0620645]
[1753850179577,1.23241518,118260.0,118250.0,0.1903845]
[1753850179803,1.23241518,118260.0,118250.0,0.0620645]
[1753850179981,1.23241518,118260.0,118250.0,0.1904245]
[1753850180456,1.46446961,118260.0,118250.0,0.1904245]
[1753850181884,1.23241518,118260.0,118250.0,0.1904245]
[1753850182567,1.23241518,118260.0,118250.0,0.0620645]
[1753850182800,1.23241518,118260.0,118250.0,0.1904645]
[1753850183549,1.46446961,118260.0,118250.0,0.0620645]
[1753850183777,1.46446961,118260.0,118250.0,0.0023145]
[1753850183778,1.92980593,118260.0,118250.0,0.0023145]
[1753850184053,2.18326863,118260.0,118250.0,0.1307145]
[1753850186617,2.18326863,118260.0,118250.0,0.0023145]
[1753850186856,2.18326863,118260.0,118250.0,0.1307145]
[1753850187372,2.33523863,118260.0,118250.0,0.0023145]
[1753850187615,2.47065443,118260.0,118250.0,0.0023145]
[1753850189028,2.59905443,118260.0,118250.0,0.0013145]
[1753850189266,7.45588572,118260.0,118250.0,1e-08]
[1753850189500,0.71563872,118250.0,118240.0,0.1288]
[1753850189742,1.85961931,118250.0,118240.0,0.1292841]
[1753850190172,1.61226488,118250.0,118240.0,0.1292841]
[1753850190908,1.61326488,118250.0,118240.0,0.1292841]
[1753850191143,1.63149279,118250.0,118240.0,0.1292841]
[1753850191378,1.14915602,118250.0,118240.0,0.1292841]
[1753850191605,1.59796488,118250.0,118240.0,0.1292841]
[1753850192527,1.57455488,118250.0,118240.0,0.1523441]
[1753850192734,1.57455488,118250.0,118240.0,0.1877241]
[1753850193046,1.59998288,118250.0,118240.0,0.1554241]
[1753850193235,1.70787018,118250.0,118240.0,0.1554241]
[1753850193704,1.62339288,118250.0,118240.0,0.1554241]
[1753850193938,1.59998288,118250.0,118240.0,0.1554241]
[1753850194287,1.59998288,118250.0,118240.0,0.1523441]
[1753850194524,1.62339288,118250.0,118240.0,0.1523441]
[1753850200742,1.85544731,118250.0,118240.0,0.1292841]
[1753850200956,1.93992461,118250.0,118240.0,0.1292841]
[1753850201164,1.70787018,118250.0,118240.0,0.1292841]
[1753850201370,1.93992461,118250.0,118240.0,0.1292841]
[1753850201751,1.70787018,118250.0,118240.0,0.1292841]